bitfinex/quotes_ETHUSD_20250803
["timestamp","ask_amount","ask_price","bid_price","bid_amount"]
[1754262794760,0.428,3514.9,3514.5,2.84531775]
[1754262794976,0.001,3515.3,3514.5,2.84531775]
[1754262794977,5.1148,3514.6,3514.5,2.84531775]
[1754262796062,5.1148,3514.6,3514.4,2.84541495]
[1754262796448,4.5334,3514.6,3514.4,2.84541495]
[1754262796619,0.5814,3514.5,3514.2,2.84500908]
[1754262797048,0.5814,3514.5,3514.4,2.84541495]
[1754262798368,0.1424,3514.6,3514.5,2.84535495]
[1754262798540,4.5334,3514.6,3514.5,2.84535495]
[1754262800470,4.391,3514.6,3514.5,2.84535495]
[1754262803027,4.9724,3514.6,3514.5,2.84535495]
[1754262803775,4.9724,3514.6,3514.4,2.84543105]
[1754262803927,0.5814,3514.5,3514.4,2.84543105]
[1754262804282,0.5814,3514.5,3514.2,2.8455476]
[1754262804422,0.5814,3514.5,3514.1,3.0]
[1754262804423,0.92879649,3514.4,3514.1,3.0]
[1754262804627,0.1424,3514.2,3514.1,3.002]
[1754262804868,5.5418,3514.2,3514.1,3.002]
[1754262805076,5.5418,3514.2,3514.1,2.84767883]
[1754262805274,5.5418,3514.2,3514.1,3.002]
[1754262805454,5.5418,3514.2,3514.1,2.84767883]
[1754262806040,5.1138,3514.2,3514.1,2.84767883]
[1754262806966,0.5824,3514.9,3514.6,2.84526653]
[1754262807164,4.39,3514.8,3514.7,2.84517532]
[1754262807670,0.1424,3514.8,3514.7,2.84517532]
[1754262807875,4.5324,3514.8,3514.7,2.84517532]
[1754262809641,5.0719,3514.8,3514.6,2.84526261]
[1754262810753,4.5324,3514.8,3514.7,2.84519304]
[1754262812471,5.0719,3514.8,3514.7,2.84519304]
[1754262813787,0.6819,3514.8,3514.7,2.84519304]
[1754262814084,5.0709,3514.8,3514.7,2.84519304]
[1754262817181,0.1424,3514.8,3514.7,2.84519304]
[1754262817367,0.001,3514.9,3514.8,2.84511209]
[1754262817568,0.001,3514.9,3514.8,6.74231209]
[1754262817943,0.001,3514.9,3514.8,6.29561209]
[1754262818253,0.001,3514.9,3514.8,6.74231209]
[1754262819957,0.001,3514.9,3514.8,11.13031209]
[1754262820153,0.001,3514.9,3514.8,12.63421746]
[1754262821165,0.001,3514.9,3514.8,5.84511209]
[1754262821371,1.1108,3514.9,3514.5,3.0]
[1754262821571,0.1434,3514.9,3514.8,2.84511209]
[1754262823080,0.001,3514.9,3514.8,2.98751209]
[1754262823286,0.001,3514.9,3514.8,3.87761209]
[1754262823580,0.001,3514.9,3514.8,5.28870069]
[1754262825158,0.001,3514.9,3514.8,4.39860069]
[1754262825452,0.5405,3514.9,3514.8,2.98751209]
[1754262825875,0.001,3514.9,3514.8,2.98751209]
[1754262826763,0.001,3514.9,3514.8,3.87761209]
[1754262827560,0.001,3514.9,3514.8,5.98751209]
[1754262831976,0.001,3514.9,3514.8,6.43421209]
[1754262832177,0.001,3514.9,3514.8,7.85670029]
[1754262832396,0.001,3514.9,3514.8,7.41000029]
[1754262834019,0.001,3514.9,3514.8,5.84511209]
[1754262836080,0.001,3514.9,3514.8,6.29181209]
[1754262836282,0.001,3514.9,3514.8,6.73521209]
[1754262836998,0.001,3514.9,3514.8,5.84511209]
[1754262837918,0.001,3514.9,3514.8,6.38561209]
[1754262839525,0.001,3514.9,3514.8,7.85055069]
[1754262841806,0.5734,3514.9,3514.8,12.23655069]
[1754262842921,0.001,3514.9,3514.8,23.90147408]
[1754262843727,0.001,3514.9,3514.8,24.80407408]
[1754262843926,0.001,3515.3,3515.2,17.50971173]
[1754262844128,0.001,3515.3,3515.2,24.21467467]
[1754262844496,0.001,3515.3,3515.2,24.35707467]
[1754262844723,0.001,3515.3,3515.2,12.69215128]
[1754262845337,0.5734,3515.3,3515.2,8.30715128]
[1754262845535,1.0132,3515.3,3515.2,10.37218834]
[1754262845827,1.0132,3515.3,3515.2,10.22978834]
[1754262847118,1.0132,3515.3,3515.2,5.84478834]
[1754262848348,1.0132,3515.3,3515.2,6.69973334]
[1754262848545,0.001,3515.3,3515.2,6.69973334]
[1754262848736,0.001,3515.3,3515.2,8.10693533]
[1754262849534,0.001,3515.7,3515.2,8.10693533]
[1754262849535,0.001,3515.7,3515.4,2.84456546]
[1754262849860,0.001,3515.7,3515.6,5.98686467]
[1754262850225,0.001,3515.7,3515.6,6.88946467]
[1754262850421,0.001,3515.7,3515.6,8.58583843]
[1754262851266,0.001,3515.7,3515.6,8.25563843]
[1754262851438,1.0132,3515.7,3515.6,8.25563843]
[1754262851627,1.0132,3515.7,3515.6,6.55926467]
[1754262852147,0.5734,3515.7,3515.6,6.55926467]
[1754262852757,0.001,3515.7,3515.6,6.55926467]
[1754262853859,0.5734,3515.7,3515.6,6.55926467]
[1754262854062,1.0132,3515.7,3515.6,6.55926467]
[1754262854240,1.0132,3515.7,3515.6,8.00376756]
[1754262854439,1.0132,3515.7,3515.6,10.94326467]
[1754262854764,1.1556,3515.7,3515.6,0.5724]
[1754262855257,1.1556,3515.7,3515.6,3.41686467]
[1754262855861,0.001,3515.7,3515.6,3.41686467]
[1754262856073,0.001,3515.7,3515.6,10.94326467]
[1754262856366,0.001,3515.7,3515.6,12.32204779]
[1754262859559,0.001,3515.7,3515.6,12.78124779]
[1754262859948,0.001,3515.7,3515.6,12.32204779]
[1754262863179,0.001,3515.7,3515.6,12.46343311]
[1754262863880,0.001,3515.7,3515.6,12.32204779]
[1754262864551,0.001,3515.7,3515.6,13.20304779]
[1754262864879,0.001,3515.7,3515.6,12.32204779]
[1754262866637,0.001,3515.7,3515.6,23.97972614]
[1754262869261,0.523,3515.7,3515.6,23.97972614]
[1754262869573,0.001,3515.7,3515.6,23.97972614]
[1754262872481,0.001,3515.7,3515.6,12.32204779]
[1754262872685,0.9769,3515.7,3515.6,12.31904779]
[1754262873364,0.9769,3515.7,3515.6,10.94026467]
[1754262875173,0.001,3515.7,3515.6,10.94026467]
[1754262875908,0.523,3515.7,3515.6,22.59794302]
[1754262876743,0.9769,3515.7,3515.6,10.94026467]
[1754262876983,0.9769,3515.7,3515.6,0.5724]
[1754262877170,1.1193,3515.7,3515.6,3.41686467]
[1754262877483,1.1193,3515.7,3515.6,6.41686467]
[1754262877880,1.1193,3515.7,3515.6,3.5724]
[1754262878751,1.1193,3515.7,3515.6,6.41686467]
[1754262879701,1.1193,3515.7,3515.6,6.40686467]
[1754262880292,0.9769,3515.7,3515.6,6.40686467]
[1754262883010,0.523,3515.7,3515.6,6.40686467]
[1754262883356,0.9769,3515.7,3515.6,6.40686467]
[1754262883792,0.9769,3515.7,3515.6,2.84446467]
[1754262883987,0.9769,3515.7,3515.6,3.69931967]
[1754262889999,0.523,3515.7,3515.6,3.69931967]
[1754262891799,0.001,3515.7,3515.6,4.80605415]
[1754262892101,0.001,3515.7,3515.6,13.03135415]
[1754262892806,0.001,3515.8,3515.7,5.84438376]
[1754262892980,0.001,3515.8,3515.7,8.71836006]
[1754262893182,0.001,3516.1,3516.0,5.84414106]
[1754262893506,0.001,3516.1,3516.0,10.22414106]
[1754262893685,0.001,3516.1,3516.0,11.21184106]
[1754262895690,0.001,3516.1,3516.0,11.73384106]
[1754262895890,0.001,3516.1,3516.0,13.66471528]
[1754262896091,0.001,3516.1,3516.0,12.81941528]
[1754262897817,0.001,3516.1,3516.0,13.26361528]
[1754262899417,0.001,3516.1,3516.0,13.66471528]
[1754262900288,0.001,3516.1,3516.0,12.81941528]
[1754262900690,1.0017,3516.1,3516.0,12.81741528]
[1754262900990,1.0017,3516.1,3516.0,10.88654106]
[1754262901189,1.0017,3516.1,3516.0,6.50854106]
[1754262901403,1.0017,3516.1,3516.0,3.522]
[1754262901603,1.0017,3516.1,3516.0,0.522]
[1754262901910,1.0017,3516.1,3516.0,2.84414106]
[1754262903582,1.0017,3516.1,3516.0,7.22214106]
[1754262904907,1.0017,3516.1,3516.0,2.84414106]
[1754262905221,1.0017,3516.1,3515.7,4.378]
[1754262905530,1.0007,3516.0,3515.3,0.854917]
[1754262905676,1.0007,3515.9,3515.1,2.84484657]
[1754262905882,0.1424,3515.1,3515.0,2.84694065]
[1754262906081,1.1431,3515.1,3515.0,0.002]
[1754262914209,1.69511,3515.1,3515.0,0.002]
[1754262914518,1.1431,3515.1,3515.0,0.002]
[1754262920939,1.6931,3515.1,3515.0,0.002]
[1754262921843,1.72866086,3515.1,3515.0,0.002]
[1754262922048,4.72866086,3515.1,3515.0,0.002]
[1754262922811,4.6931,3515.1,3515.0,0.002]
[1754262923136,4.72866086,3515.1,3515.0,0.002]
[1754262924348,0.55,3514.8,3514.6,0.002]
[1754262924548,43.0,3514.9,3514.6,0.002]
[1754262924549,8.10496491,3514.7,3514.6,0.002]
[1754262924712,10.22557649,3514.7,3514.6,0.002]
[1754262926029,42.17235168,3514.7,3514.6,0.002]
[1754262926229,3.55,3514.6,3514.1,0.002]
[1754262926417,3.55,3514.2,3513.8,0.002]
[1754262926623,10.03556693,3514.5,3513.8,0.002]
[1754262926624,33.55,3513.9,3513.8,0.002]
[1754262927151,36.52693979,3513.9,3513.8,0.002]
[1754262927550,6.52693979,3513.9,3513.8,0.002]
[1754262927736,10.90493979,3513.9,3513.8,0.002]
[1754262927938,11.99543377,3513.9,3513.8,0.002]
[1754262930428,3.55,3513.8,3512.2,2.847216]
[1754262930623,3.55,3513.8,3512.4,2.8470313]
[1754262930934,0.55,3513.6,3512.4,2.8470369]
[1754262931148,3.55,3513.4,3512.4,2.8470369]
[1754262931344,0.89007,3513.3,3512.4,2.8470369]
[1754262931543,0.89007,3513.3,3512.3,2.84708725]
[1754262931934,0.89007,3513.3,3512.1,2.84714524]
[1754262932136,0.979077,3513.2,3512.2,2.84715035]
[1754262932345,3.0,3513.0,3511.5,0.114121]
[1754262932547,0.03558313,3512.9,3511.7,2.92722365]
[1754262932726,0.5445,3512.8,3512.0,2.84735555]
[1754262932931,0.5445,3512.8,3512.0,2.84737629]
[1754262932932,4.378,3512.7,3512.0,2.84737629]
[1754262933155,4.378,3512.7,3512.1,2.84729933]
[1754262933358,1.63779361,3513.7,3512.2,0.0796]
[1754262933563,0.55,3513.4,3512.6,2.84688672]
[1754262933723,0.55,3513.4,3512.4,2.80504389]
[1754262933930,0.55,3513.4,3512.6,0.0796]
[1754262934129,0.84725,3513.3,3512.6,2.92643384]
[1754262934330,0.84725,3513.3,3512.7,2.84679741]
[1754262934532,0.84725,3513.3,3512.6,2.92648477]
[1754262934729,0.84725,3513.3,3512.5,2.84695488]
[1754262935159,0.5445,3513.2,3512.3,0.07945488]
[1754262935479,4.378,3513.1,3512.3,0.07945488]
[1754262935683,4.378,3513.1,3512.5,2.84696406]
[1754262935980,4.378,3513.1,3512.4,2.84703721]
[1754262936330,0.1424,3512.5,3512.4,2.84703721]
[1754262936785,0.1424,3512.5,3512.2,2.84714336]
[1754262937072,1.0945,3513.6,3512.8,2.84671851]
[1754262937228,4.378,3513.5,3512.8,2.84671851]
[1754262937426,0.1424,3512.9,3512.8,2.84671851]
[1754262939087,1.63779361,3513.7,3512.8,2.84671851]
[1754262939088,1.63779361,3513.7,3512.8,0.0794]
[1754262939280,1.63779361,3513.7,3513.3,2.84632681]
[1754262939281,0.1424,3513.4,3513.3,2.84632681]
[1754262939779,0.1424,3513.4,3513.3,5.84632681]
[1754262940343,0.1424,3513.4,3513.3,3.0]
[1754262940750,1.1151,3513.4,3513.3,3.0]
[1754262941136,1.1151,3513.4,3512.8,2.84665476]
[1754262941444,5.3507,3513.4,3512.9,3.0]
[1754262941765,0.1424,3513.0,3512.9,2.84661667]
[1754262942531,4.378,3513.4,3513.2,2.84636993]
[1754262942731,1.63779361,3513.7,3513.3,2.84632681]
[1754262942979,4.378,3513.7,3513.4,0.0794]
[1754262943151,4.378,3513.7,3513.5,2.84609501]
[1754262943333,0.1424,3513.5,3513.4,2.84622608]
[1754262943735,0.1424,3513.5,3513.4,3.0]
[1754262944150,0.1424,3513.5,3513.4,2.8462458]
[1754262944876,0.1424,3513.5,3513.4,5.8462458]
[1754262945098,7.3855,3515.0,3513.5,3.0]
[1754262945302,4.377,3515.3,3514.1,3.1424]
[1754262945583,0.1424,3514.7,3514.6,5.84527399]
[1754262945942,4.377,3515.3,3514.7,3.0]
[1754262946197,0.1424,3514.8,3514.7,5.84518194]
[1754262946485,0.1424,3514.8,3514.7,3.0]
[1754262947306,0.1424,3514.8,3514.7,2.84519304]
[1754262947792,0.1424,3514.8,3514.7,5.84519304]
[1754262950201,0.1424,3514.8,3514.7,3.0]
[1754262950498,0.1424,3514.8,3514.7,5.84519304]
[1754262951264,0.1424,3515.2,3514.7,1.0830675]
[1754262951459,0.1424,3515.2,3514.7,2.89421397]
[1754262951808,0.1424,3515.2,3515.1,2.84486927]
[1754262952876,0.1424,3515.2,3515.0,2.84493724]
[1754262953327,0.1424,3515.2,3514.6,5.98762425]
[1754262953619,0.1424,3515.2,3514.9,2.84502129]
[1754262954175,0.1424,3515.2,3515.0,2.8449418]
[1754262954377,0.1424,3515.2,3515.1,2.84486927]
[1754262956296,0.1424,3515.2,3515.0,2.84493585]
[1754262956890,0.1434,3515.2,3514.9,0.855053]
[1754262957109,0.6879,3515.2,3514.9,0.855053]
[1754262957301,0.6879,3515.2,3514.9,3.70006727]
[1754262957502,0.6879,3515.2,3515.0,2.84494127]
[1754262957674,0.1434,3515.2,3515.1,2.84486927]
[1754262958074,0.1434,3515.2,3515.0,2.84493223]
[1754262958474,0.1434,3515.2,3514.9,3.70007042]
[1754262958721,0.5445,3515.1,3514.9,0.855053]
[1754262958900,1.0119,3515.0,3514.8,3.0]
[1754262959194,0.5737,3515.0,3514.8,3.855095]
[1754262959576,0.7161,3515.0,3514.8,3.855095]
[1754262960900,1.0119,3514.9,3514.8,0.855095]
[1754262963094,0.1424,3515.0,3514.8,0.855095]
[1754262963285,0.1424,3515.0,3514.9,2.84503115]
[1754262963479,0.1424,3515.0,3514.9,3.0]
[1754262964125,0.1424,3515.0,3514.9,5.84503115]
[1754262964621,0.1424,3515.0,3514.9,6.39503115]
[1754262965610,0.001,3515.2,3515.0,2.84487478]
[1754262965811,0.1424,3515.1,3515.0,2.84487478]
[1754262966020,0.1424,3515.1,3515.0,5.84487478]
[1754262966189,0.1424,3515.1,3515.0,6.41857478]
[1754262968530,0.001,3515.2,3515.1,5.84486927]
[1754262968733,0.001,3515.2,3515.1,5.96486927]
[1754262968935,0.1434,3516.1,3516.0,2.84414106]
[1754262969092,0.001,3516.1,3516.0,2.98654106]
[1754262969293,0.001,3516.1,3516.0,4.00691943]
[1754262969540,1.0129,3516.1,3516.0,2.84414106]
[1754262970031,0.001,3516.1,3516.0,2.84414106]
[1754262970617,0.001,3516.1,3516.0,2.98654106]
[1754262970990,0.001,3516.1,3516.0,3.1971493]
[1754262971535,0.001,3516.1,3516.0,4.14789463]
[1754262971709,0.001,3516.1,3516.0,3.1971493]
[1754262972441,0.001,3516.1,3516.0,7.5691493]
[1754262973016,0.001,3516.1,3516.0,8.1428493]
[1754262974049,0.001,3516.1,3516.0,0.7161]
[1754262974216,1.1553,3516.1,3516.0,0.5737]
[1754262974836,1.1553,3516.1,3516.0,3.41784106]
[1754262975334,1.1553,3516.1,3516.0,0.5737]
[1754262978810,0.1434,3516.1,3516.0,3.41784106]
[1754262980821,0.001,3516.1,3516.0,3.41784106]
[1754262981034,0.001,3516.1,3516.0,4.92636351]
[1754262981740,0.5267,3516.5,3516.3,2.84386937]
[1754262981929,0.5267,3516.5,3516.1,5.84406018]
[1754262981930,0.1424,3516.5,3516.0,3.7161]
[1754262982244,0.4382,3516.4,3516.3,3.0]
[1754262982816,0.4382,3516.4,3516.3,3.854729]
[1754262983021,0.4382,3516.4,3516.3,0.854729]
[1754262983261,0.4382,3516.4,3515.9,3.0]
[1754262983458,0.4382,3516.4,3516.3,0.4382]
[1754262984042,0.5806,3516.4,3516.3,0.4382]
[1754262984550,1.1543,3516.4,3516.3,0.4382]
[1754262987458,1.1543,3516.4,3516.1,2.17592779]
[1754262987620,0.4382,3516.4,3516.1,2.17592779]
[1754262987827,0.1424,3516.2,3516.1,3.03074679]
[1754262988934,0.6694,3516.2,3516.1,3.03074679]
[1754262989135,0.6694,3516.2,3516.1,0.18664679]
[1754262989437,0.6694,3516.2,3516.1,3.03070697]
[1754262989834,0.6694,3516.2,3516.1,0.18664679]
[1754262990151,1.1135,3516.2,3516.1,0.18664679]
[1754262990965,0.1424,3516.2,3516.1,3.03070697]
[1754262991329,0.1424,3516.2,3516.1,3.18664679]
[1754262992241,0.6694,3516.2,3516.1,3.18664679]
[1754262992567,0.6694,3516.2,3516.1,3.03070697]
[1754262995468,0.6694,3516.2,3516.1,3.18664679]
[1754262995667,0.1424,3516.2,3516.1,6.03070697]
[1754262996163,0.9711,3516.5,3516.2,2.84391339]
[1754262996469,11.66103766,3518.5,3516.2,8.69336204]
[1754262996765,0.527,3517.0,3516.7,3.0]
[1754262996971,0.527,3516.9,3516.7,5.84356329]
[1754262997153,0.6694,3516.8,3516.7,3.0]
[1754262997354,0.6694,3516.8,3516.7,5.84357494]
[1754262998184,0.6694,3516.8,3516.7,3.0]
[1754262998351,1.1135,3516.8,3516.7,3.0]
[1754262998547,0.6694,3516.8,3516.7,5.84357494]
[1754262998749,0.4441,3517.4,3516.8,2.84342585]
[1754262999060,0.1424,3516.9,3516.8,2.84342585]
[1754263000201,0.1424,3516.9,3516.8,3.37042585]
[1754263000385,0.1424,3516.9,3516.8,0.52692585]
[1754263000756,0.1424,3516.9,3516.8,3.37041993]
[1754263001988,0.1424,3516.9,3516.8,0.52692585]
[1754263002796,1.1135,3516.9,3516.8,0.52692585]
[1754263003580,1.1135,3516.9,3516.5,3.0]
[1754263003782,0.1424,3516.7,3516.5,3.854665]
[1754263003978,0.1424,3516.7,3516.5,6.69839331]
[1754263004195,0.9711,3516.6,3516.5,6.69839331]
[1754263004694,0.1424,3516.7,3516.6,2.8436558]
[1754263005877,0.1424,3516.7,3516.6,7.2106558]
[1754263006198,0.1424,3516.7,3516.6,7.7376558]
[1754263007563,0.1424,3516.7,3516.6,10.7376558]
[1754263007758,8.75669262,3519.5,3517.1,2.84317792]
[1754263007759,0.527,3517.5,3517.1,2.84317792]
[1754263007985,0.527,3517.5,3517.2,2.84309358]
[1754263008159,0.527,3517.5,3517.3,2.84306553]
[1754263008362,0.527,3517.4,3517.3,2.84306553]
[1754263008574,0.6694,3517.4,3517.3,2.84306553]
[1754263009000,0.4441,3517.5,3517.4,2.84300904]
[1754263009170,0.1424,3517.5,3517.4,2.84300904]
[1754263009567,0.6694,3517.5,3517.4,2.84300904]
[1754263009793,1.1135,3517.5,3517.3,2.84307297]
[1754263009994,0.9711,3517.4,3517.1,3.854515]
[1754263010298,1.1135,3517.3,3517.0,7.21031959]
[1754263010500,0.1424,3517.3,3517.0,2.84331959]
[1754263010670,0.1424,3517.3,3516.8,7.35187619]
[1754263010671,0.9711,3517.2,3516.9,2.84339048]
[1754263010866,0.1424,3517.3,3516.9,2.84339048]
[1754263011195,0.9711,3517.1,3517.0,2.84331072]
[1754263012107,0.9711,3517.1,3517.0,1.072e-05]
[1754263012303,0.9711,3517.1,3517.0,5.84332144]
[1754263012592,0.9711,3517.1,3517.0,5.8433431]
[1754263013003,0.527,3517.1,3517.0,5.8433431]
[1754263013570,0.9711,3517.1,3517.0,5.8433431]
[1754263015072,0.527,3517.1,3517.0,5.8433431]
[1754263015683,0.1424,3517.3,3517.0,5.8433431]
[1754263015684,0.6694,3517.3,3517.0,5.8433431]
[1754263016003,0.527,3517.2,3517.1,2.84325154]
[1754263016596,0.9711,3517.2,3517.1,2.84325154]
[1754263018008,0.1424,3517.3,3517.2,2.8431707]
[1754263018510,0.1424,3517.6,3517.4,2.84296701]
[1754263018708,1.1135,3517.6,3517.4,2.84296701]
[1754263019014,0.5865,3517.6,3517.5,2.84292821]
[1754263019488,0.5865,3517.6,3517.4,2.84299398]
[1754263019682,0.5566,3517.5,3517.4,2.84299398]
[1754263019883,0.5566,3517.5,3517.2,4.365]
[1754263020083,0.4529,3517.4,3516.9,4.365]
[1754263020285,0.59213862,3517.3,3516.2,0.002]
[1754263020506,0.59213862,3517.3,3516.2,2.84595715]
[1754263020815,0.4529,3517.2,3516.5,0.5566]
[1754263020993,0.1424,3516.4,3516.2,2.84595715]
[1754263021178,0.1424,3516.4,3516.2,2.84596263]
[1754263021696,1.0095,3516.3,3515.9,5.098539]
[1754263021902,0.0355366,3517.5,3515.7,2.84430724]
[1754263021903,1.0095,3516.2,3515.7,2.84430724]
[1754263022111,1.0095,3516.2,3515.5,2.84449141]
[1754263022112,0.1424,3515.9,3515.5,7.20848555]
[1754263022281,1.0095,3515.8,3515.5,2.84448555]
[1754263022616,1.0095,3515.7,3515.6,2.84445678]
[1754263023018,1.0095,3515.7,3515.4,3.20487898]
[1754263023222,1.0095,3515.6,3515.4,0.36031647]
[1754263023417,0.5566,3515.6,3515.5,2.84454558]
[1754263023599,0.5566,3515.8,3515.6,2.84440712]
[1754263023789,0.5566,3515.7,3515.6,2.84440712]
[1754263024115,0.1424,3515.9,3515.8,2.84430286]
[1754263024315,0.1424,3515.9,3515.5,2.84454558]
[1754263024517,1.0095,3515.8,3515.5,0.76625621]
[1754263024706,1.0095,3515.7,3515.4,2.84461995]
[1754263024916,0.1424,3515.7,3515.6,2.84446467]
[1754263025098,0.4529,3516.2,3515.7,2.84434075]
[1754263025417,0.1424,3515.8,3515.7,2.84434075]
[1754263025625,1.0095,3516.2,3515.7,3.41322881]
[1754263025802,0.1424,3515.9,3515.5,2.84451212]
[1754263025979,0.1424,3515.9,3515.4,2.84460554]
[1754263025980,1.0095,3515.8,3515.4,2.84460554]
[1754263026182,1.0095,3515.7,3515.5,2.84451792]
[1754263026383,0.4529,3515.7,3515.4,2.84460568]
[1754263026594,0.5566,3515.6,3515.5,2.84454558]
[1754263027084,0.5566,3516.0,3515.6,2.84439191]
[1754263027281,0.1424,3515.8,3515.7,2.84435776]
[1754263027486,0.1424,3515.8,3515.7,3.41324809]
[1754263027723,3.0,3517.3,3515.7,3.41324809]
[1754263027724,0.1424,3516.5,3515.7,0.94389033]
[1754263027927,1.0095,3516.5,3515.9,2.84416136]
[1754263028111,0.1424,3516.1,3515.9,2.84416136]
[1754263028324,1.0095,3516.0,3515.9,2.84416136]
[1754263028709,0.1424,3516.1,3516.0,2.84414106]
[1754263031138,1.1519,3516.1,3516.0,2.84414106]
[1754263031337,1.1519,3516.1,3515.7,2.84432484]
[1754263031542,0.1424,3516.1,3515.7,2.84432484]
[1754263031841,1.0095,3516.0,3515.7,2.84432484]
[1754263032044,0.1424,3515.8,3515.7,2.84438067]
[1754263032534,1.1519,3515.8,3515.7,2.84438067]
[1754263032745,1.1519,3515.8,3515.4,0.2096967]
[1754263032893,1.0095,3515.7,3515.4,0.2096967]
[1754263033097,1.0095,3515.7,3515.5,2.84446827]
[1754263033345,1.0095,3515.6,3515.5,2.84446827]
[1754263033494,1.0095,3515.6,3515.4,2.84460237]
[1754263033694,1.0095,3515.5,3515.4,2.84460237]
[1754263034206,1.0095,3515.5,3515.4,5.84460237]
[1754263035618,0.5566,3515.7,3515.6,2.84443898]
[1754263035935,1.0095,3515.7,3515.6,3.0]
[1754263036336,1.0095,3515.7,3515.6,5.84446467]
[1754263037499,1.0095,3515.7,3515.6,3.0]
[1754263037925,1.0095,3515.7,3515.6,5.84446467]
[1754263040603,1.0095,3515.7,3515.6,3.0]
[1754263041036,1.0095,3515.7,3515.6,5.84446467]
[1754263043101,0.5566,3515.7,3515.6,5.84446467]
[1754263044141,0.1424,3515.8,3515.7,2.84438376]
[1754263044352,0.4529,3516.5,3515.7,0.86888484]
[1754263044511,1.0095,3516.5,3516.1,2.84404598]
[1754263044705,1.53685396,3517.1,3516.1,2.84404598]
[1754263044910,1.0095,3516.4,3516.0,2.84411972]
[1754263045248,0.1424,3516.1,3515.9,2.84421001]
[1754263045410,0.1424,3516.1,3515.9,3.48882484]
[1754263045608,0.1424,3516.1,3516.0,2.84414106]
[1754263045812,0.1424,3516.1,3515.9,3.48881868]
[1754263046130,0.699,3516.1,3515.9,3.48881868]
[1754263046318,0.5566,3516.0,3515.9,3.48881868]
[1754263048652,0.5566,3516.0,3515.6,3.1424]
[1754263048849,0.5566,3516.0,3515.6,3.0]
[1754263048850,0.1424,3515.8,3515.6,3.0]
[1754263049015,1.029,3515.7,3515.6,5.84444905]
[1754263050314,1.029,3515.7,3515.6,5.74444905]
[1754263050651,1.029,3515.7,3515.6,5.73444905]
[1754263052857,1.029,3515.7,3515.5,3.0]
[1754263053058,1.029,3515.6,3515.3,2.84470296]
[1754263053353,1.1714,3515.5,3515.4,2.8446265]
[1754263054040,1.1714,3515.5,3515.3,2.8446832]
[1754263054243,0.55,3516.8,3515.3,2.8446832]
[1754263054419,1.1714,3515.4,3515.3,2.8446832]
[1754263055016,1.1714,3515.4,3515.3,5.8446832]
[1754263056163,0.1424,3515.4,3515.3,5.8446832]
[1754263057681,0.5738,3516.0,3515.8,2.84430234]
[1754263057820,0.55,3516.6,3515.8,2.84430234]
[1754263058019,1.1714,3515.9,3515.8,2.84430234]
[1754263058234,1.1714,3515.9,3515.7,2.84437495]
[1754263058467,0.4552,3515.9,3515.7,2.84437495]
[1754263058637,0.1424,3515.8,3515.7,2.84437495]
[1754263058821,0.7162,3515.8,3515.7,2.84437495]
[1754263059217,0.1424,3515.8,3515.7,2.84437495]
[1754263059422,0.1424,3516.1,3516.0,2.84414106]
[1754263059656,0.5738,3516.3,3516.0,2.84407237]
[1754263059843,0.1424,3516.1,3516.0,2.84407237]
[1754263061665,0.7162,3516.1,3515.9,2.84420239]
[1754263061851,1.029,3516.0,3515.9,2.84420239]
[1754263065431,0.5738,3516.0,3515.9,2.84420239]
[1754263065630,0.1424,3516.1,3516.0,2.84414106]
[1754263065952,0.7162,3516.1,3516.0,2.84414106]
[1754263066157,1.1714,3516.1,3515.9,2.84419815]
[1754263066469,1.029,3516.0,3515.7,3.0]
[1754263066660,0.001,3516.5,3515.8,2.84429968]
[1754263066864,1.029,3515.9,3515.8,2.84429968]
[1754263067028,1.1714,3515.9,3515.7,5.84437669]
[1754263067228,1.029,3515.8,3515.7,3.0]
[1754263067426,1.029,3515.8,3515.4,2.84460033]
[1754263067624,1.029,3515.7,3515.2,0.002]
[1754263067861,0.1424,3515.5,3515.3,2.815]
[1754263068037,0.1424,3515.5,3515.3,2.84469984]
[1754263068227,1.029,3515.4,3515.3,2.84469984]
[1754263069203,1.029,3515.4,3515.3,2.84470742]
[1754263069900,1.029,3515.4,3515.3,3.0]
[1754263070204,1.029,3515.4,3515.2,3.002]
[1754263070409,0.001,3516.5,3515.2,2.84672172]
[1754263070709,1.1714,3515.3,3515.2,2.84672172]
[1754263071053,0.7162,3515.3,3515.2,2.84672172]
[1754263071285,1.1714,3515.3,3515.2,2.84672172]
[1754263072105,0.7162,3515.3,3515.2,2.84672172]
[1754263072490,0.1424,3515.3,3515.2,2.84672172]
[1754263074018,0.7162,3515.3,3515.2,2.84672172]
[1754263074719,0.7162,3515.3,3515.2,0.002]
[1754263074720,1.1714,3515.3,3515.2,0.002]
[1754263078598,1.7214,3515.3,3515.2,0.002]
[1754263078824,1.92909884,3515.3,3515.1,0.002]
[1754263079121,1.92909884,3515.3,3513.2,11.65978403]
[1754263079122,0.55,3515.1,3513.6,2.84606151]
[1754263079327,0.55,3514.9,3513.7,3.0]
[1754263079613,0.1424,3513.7,3513.5,2.84615389]
[1754263079817,0.1424,3513.7,3513.6,3.39608378]
[1754263080181,0.1424,3513.7,3513.6,6.39608378]
[1754263080394,0.1424,3513.7,3513.6,3.55]
[1754263080595,0.7012,3513.7,3513.6,3.55]
[1754263081031,0.7012,3513.7,3513.6,3.0]
[1754263081199,1.1683,3513.7,3513.6,3.0]
[1754263081806,1.1683,3513.7,3513.5,2.84614608]
[1754263082007,0.1424,3513.7,3513.5,2.84609405]
[1754263082422,0.1424,3513.7,3513.6,2.84608378]
[1754263082621,0.5588,3513.9,3513.6,3.0]
[1754263082818,0.1424,3513.7,3513.6,5.84608378]
[1754263083636,0.7012,3513.7,3513.6,5.84608378]
[1754263084133,1.1683,3513.7,3513.6,5.84608378]